fUSD/lending_fUSD_20250427
["ID","MTS","AMOUNT","RATE_DAILY","PERIOD"]
[359185294,1745785938895,370.91026638,0.00041096,30]
[359185295,1745785939120,160.0,0.000405,62]
[359185296,1745785939507,384.63394623,0.00041096,30]
[359185297,1745785939537,160.0,0.000395,60]
[359185298,1745785939913,160.0,0.000385,57]
[359185299,1745785940134,398.86540225,0.00041096,30]
[359185300,1745785940321,312.0,0.000375,54]
[359185301,1745785943031,700.0,0.00040147,30]
[359185302,1745785943142,673.64764893,0.00040807,30]
[359185303,1745785943397,700.0,0.00040259,30]
[359185304,1745785943743,700.0,0.00040343,30]
[359185305,1745785944080,700.0,0.00040595,30]
[359185306,1745785944256,311.060823,0.000193,2]
[359185307,1745785944933,700.0,0.00040855,30]
[359185308,1745785945792,700.0,0.00040882,30]
[359185309,1745785946065,1154.01619194,0.00040967,30]
[359185310,1745785947477,500.0,0.00040501,30]
[359185311,1745785947985,972.66696505,0.00040515,30]
[359185312,1745785961775,500.0,0.0003726,60]
[359185313,1745785963349,500.0,0.00038356,60]
[359185314,1745785964895,500.0,0.00039452,60]
[359185315,1745785966425,530.78835963,0.00040548,60]
[359185316,1745785969655,500.0,0.0003726,60]
[359185317,1745785971189,500.0,0.00038356,60]
[359185318,1745785973536,500.0,0.00039452,60]
[359185319,1745785973719,151.6553832,0.000399,30]
[359185320,1745785974879,500.0,0.00040548,60]
[359185321,1745785977368,500.0,0.00040847,30]
[359185322,1745785986511,242.533,0.00040847,30]
[359185323,1745785991459,500.0,0.00041054,120]
[359185324,1745785998414,500.0,0.00041054,120]
[359185325,1745786002524,500.0,0.00041054,120]
[359185326,1745786011712,500.0,0.00032876,120]
[359185327,1745786011954,500.0,0.00032876,120]
[359185328,1745786012185,500.0,0.00032876,120]
[359185329,1745786012404,500.0,0.00032876,120]
[359185330,1745786012651,500.0,0.00032876,120]
[359185331,1745786012877,500.0,0.00032876,120]
[359185332,1745786013127,500.0,0.00032876,120]
[359185333,1745786013359,500.0,0.00032876,120]
[359185334,1745786013595,500.0,0.00032876,120]
[359185335,1745786013826,500.0,0.00032876,120]
[359185336,1745786014176,500.0,0.00032876,120]
[359185337,1745786014409,509.24189642,0.00032876,120]
[359185338,1745786021085,1333.0,0.00040658,120]
[359185339,1745786036994,584.47,0.00041095,30]
[359185340,1745786054678,-1912.0,0.0002,4]
[359185341,1745786055337,666.61171381,0.00041094,30]
[359185342,1745786123720,435.74109189,0.000372,120]
[359185343,1745786128680,435.74109185,0.000372,120]
[359185344,1745786133682,435.74109185,0.000372,120]
[359185345,1745786138687,435.74109185,0.000372,120]
[359185346,1745786143708,435.74109185,0.000372,120]
[359185347,1745786154514,350.428,0.00041055,30]
[359185348,1745786181867,188.1,0.000335,31]
[359185349,1745786181927,188.1,0.000335,31]
[359185350,1745786181987,188.1,0.000335,31]
[359185351,1745786182045,188.1,0.000335,31]
[359185352,1745786182108,188.1,0.000335,31]
[359185353,1745786182173,188.1,0.000335,31]
[359185354,1745786182224,188.1,0.000335,31]
[359185355,1745786182287,188.1,0.000335,31]
[359185356,1745786182352,188.1,0.000335,31]
[359185357,1745786182417,188.1,0.000335,31]
[359185358,1745786182489,188.1,0.000335,31]
[359185359,1745786182540,188.1,0.000335,31]
[359185360,1745786182593,188.1,0.000366,31]
[359185361,1745786182658,188.1,0.000366,31]
[359185362,1745786182720,188.1,0.000366,31]
[359185363,1745786182772,188.1,0.000366,31]
[359185364,1745786182838,188.1,0.000366,31]
[359185365,1745786183064,188.1,0.000366,31]
[359185366,1745786183111,188.1,0.000366,31]
[359185367,1745786183147,188.1,0.000366,31]
[359185368,1745786183215,188.1,0.000366,31]
[359185369,1745786183313,188.1,0.000366,31]
[359185370,1745786183348,188.1,0.000366,31]
[359185371,1745786183386,188.1,0.000366,31]
[359185372,1745786183424,188.1,0.000366,31]
[359185373,1745786183460,188.1,0.000366,31]
[359185374,1745786183499,188.1,0.000366,31]
[359185375,1745786183537,188.1,0.000366,31]
[359185376,1745786183572,188.1,0.000366,31]
[359185377,1745786183626,188.1,0.000366,31]
[359185378,1745786183683,188.1,0.000366,31]
[359185379,1745786183745,188.1,0.000366,31]
[359185380,1745786183812,188.1,0.000366,31]
[359185381,1745786183880,188.1,0.000366,31]
[359185382,1745786183925,188.1,0.000366,31]
[359185383,1745786183994,188.1,0.000366,31]
[359185384,1745786184059,188.1,0.000397,31]
[359185385,1745786184106,188.1,0.000397,31]
[359185386,1745786184172,188.1,0.000397,31]
[359185387,1745786184230,188.1,0.000397,31]
[359185388,1745786184293,188.1,0.000397,31]
[359185389,1745786184357,188.1,0.000397,31]
[359185390,1745786184433,188.1,0.000397,31]
[359185391,1745786184486,188.1,0.000397,31]
[359185392,1745786184537,188.1,0.000397,31]
[359185393,1745786184600,188.1,0.000397,31]
[359185394,1745786184643,188.1,0.000397,31]
[359185395,1745786184752,188.1,0.000397,31]
[359185396,1745786184791,188.1,0.000397,31]
[359185397,1745786184831,188.1,0.000397,31]
[359185398,1745786184879,188.1,0.000397,31]
[359185399,1745786184920,188.1,0.000397,31]
[359185400,1745786184975,188.1,0.000397,31]
[359185401,1745786185030,188.1,0.000397,31]
[359185402,1745786185108,188.1,0.000397,31]
[359185403,1745786185329,188.1,0.000397,31]
[359185404,1745786185379,188.1,0.000397,31]
[359185405,1745786185440,188.1,0.000397,31]
[359185406,1745786185495,188.1,0.000397,31]
[359185407,1745786185561,188.1,0.000397,31]
[359185408,1745786191433,959.03,0.00016986,2]
[359185409,1745786191638,959.03,0.0001925,2]
[359185410,1745786227540,200.0,0.00041096,30]
[359185411,1745786228197,207.4,0.00041096,30]
[359185412,1745786228832,215.0738,0.00041096,30]
[359185413,1745786229470,223.0315306,0.00041096,30]
[359185414,1745786230105,231.28369723,0.00041096,30]
[359185415,1745786230738,239.84119403,0.00041096,30]
[359185416,1745786231354,248.71531821,0.00041096,30]
[359185417,1745786231985,257.91778498,0.00041096,30]
[359185418,1745786232561,600.00008149,0.00041095,30]
[359185419,1745786232615,267.46074303,0.00041096,30]
[359185420,1745786233305,277.35679052,0.00041096,30]
[359185421,1745786233921,287.61899177,0.00041096,30]
[359185422,1745786234739,298.26089446,0.00041096,30]
[359185423,1745786235384,309.29654756,0.00041096,30]
[359185424,1745786236000,320.74051982,0.00041096,30]
[359185425,1745786236633,332.60791905,0.00041096,30]
[359185426,1745786237271,344.91441206,0.00041096,30]
[359185427,1745786237958,357.6762453,0.00041096,30]
[359185428,1745786238597,370.91026638,0.00041096,30]
[359185429,1745786239209,384.63394623,0.00041096,30]
[359185430,1745786239882,398.86540225,0.00041096,30]
[359185431,1745786244362,500.0,0.00040077,30]
[359185432,1745786245365,540.80694648,0.00040628,30]
[359185433,1745786245505,500.0,0.00040098,30]
[359185434,1745786246056,500.0,0.00040114,30]
[359185435,1745786246415,500.0,0.00040115,30]
[359185436,1745786246751,500.0,0.000403,30]
[359185437,1745786247077,500.0,0.00040363,30]
[359185438,1745786247418,500.0,0.00040408,30]
[359185439,1745786247741,500.0,0.00040492,30]
[359185440,1745786248096,500.0,0.00040689,30]
[359185441,1745786248399,700.0,0.00040908,30]
[359185442,1745786249143,500.0,0.00040764,30]
[359185443,1745786249334,1633.12169532,0.000409,30]
[359185444,1745786278069,500.0,0.00019999,120]
[359185445,1745786278320,500.0,0.00019999,120]
[359185446,1745786278776,500.0,0.00019999,120]
[359185447,1745786279032,500.0,0.00019999,120]
[359185448,1745786279307,500.0,0.00019999,120]
[359185449,1745786279673,564.22947307,0.00019999,120]
[359185450,1745786310635,1621.985,0.00037622,49]
[359185451,1745786310789,165.476,0.00037622,49]
[359185452,1745786369446,186.99,0.00032877,30]
[359185453,1745786369660,186.99,0.00038356,30]
[359185454,1745786431728,331.58085,0.00041088,30]
[359185455,1745786432319,331.58085,0.00040888,30]
[359185456,1745786450901,1000.0,0.00032876,30]
[359185457,1745786451161,1000.0,0.00032876,30]
[359185458,1745786451410,1000.0,0.00032876,30]
[359185459,1745786451632,1000.0,0.00032876,30]
[359185460,1745786451898,1000.0,0.00032876,30]
[359185461,1745786452170,1000.0,0.00032876,30]
[359185462,1745786452452,1000.0,0.00032876,30]
[359185463,1745786452718,1000.0,0.00032876,30]
[359185464,1745786453047,1000.0,0.00032876,30]
[359185465,1745786453281,1000.0,0.00032876,30]
[359185466,1745786453520,1000.0,0.00032876,30]
[359185467,1745786453765,1000.0,0.00032876,30]
[359185468,1745786453996,1000.0,0.00032876,30]
[359185469,1745786454245,1000.0,0.00032876,30]
[359185470,1745786454496,1000.0,0.00032876,30]
[359185471,1745786454736,221.20707633,0.00032876,30]
[359185472,1745786460864,350.428,0.00041055,30]
[359185473,1745786472306,150.0,0.00018903,7]
[359185474,1745786474169,250.0,0.00017,2]
[359185475,1745786475255,199.98157304,0.00019,2]
[359185476,1745786475279,100.01842696,0.00019,2]
[359185477,1745786476362,430.95,0.00041095,120]
[359185478,1745786484420,300.0,0.00032876,30]
[359185479,1745786484663,300.0,0.00032876,30]
[359185480,1745786484905,302.09781464,0.00032876,30]
[359185481,1745786492963,1000.0,0.00018903,2]
[359185482,1745786500953,157.75,0.0004,30]
[359185483,1745786501347,157.75,0.0004,30]
[359185484,1745786523492,1169.51,0.00035616,120]
[359185485,1745786523734,1169.51,0.00035616,120]
[359185486,1745786523972,1169.51,0.00035616,120]
[359185487,1745786524403,1169.51,0.00035616,120]
[359185488,1745786524636,1169.51,0.00035616,120]
[359185489,1745786525088,200.0,0.00041096,30]
[359185490,1745786525714,207.4,0.00041096,30]
[359185491,1745786525861,1169.51,0.00035616,120]
[359185492,1745786526094,1169.51,0.00035616,120]
[359185493,1745786526358,215.0738,0.00041096,30]
[359185494,1745786526390,1169.51,0.00035616,120]
[359185495,1745786526617,1169.51,0.00035616,120]
[359185496,1745786526853,1169.51,0.00035616,120]
[359185497,1745786526967,223.0315306,0.00041096,30]
[359185498,1745786527143,1169.51,0.00035616,120]
[359185499,1745786527387,1169.51,0.00035616,120]
[359185500,1745786527579,231.28369723,0.00041096,30]
[359185501,1745786527646,1169.51,0.00035616,120]
[359185502,1745786527921,1169.51,0.00035616,120]
[359185503,1745786528176,239.84119403,0.00041096,30]
[359185504,1745786528207,1169.51,0.00035616,120]
[359185505,1745786528435,1169.51,0.00035616,120]
[359185506,1745786528688,1169.51,0.00035616,120]
[359185507,1745786528791,248.71531821,0.00041096,30]
[359185508,1745786528937,1169.51,0.00035616,120]
[359185509,1745786529188,1169.51,0.00035616,120]
[359185510,1745786529455,1169.51,0.00035616,120]
[359185511,1745786529591,257.91778498,0.00041096,30]
[359185512,1745786529686,1169.51,0.00035616,120]
[359185513,1745786529950,1169.51,0.00035616,120]
[359185514,1745786530203,1169.51,0.00035616,120]
[359185515,1745786530257,267.46074303,0.00041096,30]
[359185516,1745786530441,1169.54825935,0.00035616,120]
[359185517,1745786530857,277.35679052,0.00041096,30]
[359185518,1745786531486,287.61899177,0.00041096,30]
[359185519,1745786532096,298.26089446,0.00041096,30]
[359185520,1745786532741,309.29654756,0.00041096,30]
[359185521,1745786533382,320.74051982,0.00041096,30]
[359185522,1745786534028,332.60791905,0.00041096,30]
[359185523,1745786534887,344.91441206,0.00041096,30]
[359185524,1745786535340,357.6762453,0.00041096,30]
[359185525,1745786535968,370.91026638,0.00041096,30]
[359185526,1745786537143,384.63394623,0.00041096,30]
[359185527,1745786537813,398.86540225,0.00041096,30]
[359185528,1745786540320,500.0,0.00040008,30]
[359185529,1745786541168,500.0,0.00040565,30]
[359185530,1745786541555,500.0,0.00040575,30]
[359185531,1745786541874,500.0,0.0004094,30]
[359185532,1745786542221,500.0,0.00040951,30]
[359185533,1745786543611,507.34385721,0.00040417,30]
[359185534,1745786545031,500.0,0.00041027,30]
[359185535,1745786551676,531.29652422,0.00040108,30]
[359185536,1745786552330,500.0,0.0004099,30]
[359185537,1745786583399,430.04,0.00018,7]
[359185538,1745786591522,500.0,0.00041096,120]
[359185539,1745786597599,500.0,0.00041096,120]
[359185540,1745786600931,500.0,0.00041096,120]
[359185541,1745786638481,565.98,0.00018899,2]
[359185542,1745786639603,186.68,0.0001512,2]
[359185543,1745786690899,3682.19,0.00018899,2]
[359185544,1745786754551,1500.0,0.00032877,120]
[359185545,1745786758597,208.0,0.0004078,30]
[359185546,1745786758919,208.0,0.000397,30]
[359185547,1745786759230,208.0,0.0003861,30]
[359185548,1745786772828,350.428,0.00041055,30]
[359185549,1745786791152,153.66,0.000335,31]
[359185550,1745786791203,153.66,0.000335,31]
[359185551,1745786791262,153.66,0.000335,31]
[359185552,1745786791330,153.66,0.000335,31]
[359185553,1745786791386,153.66,0.000335,31]
[359185554,1745786791511,153.66,0.000366,31]
[359185555,1745786791570,153.66,0.000366,31]
[359185556,1745786791622,153.66,0.000366,31]
[359185557,1745786791689,153.66,0.000366,31]
[359185558,1745786791746,153.66,0.000366,31]
[359185559,1745786791806,153.66,0.000366,31]
[359185560,1745786791874,153.66,0.000366,31]
[359185561,1745786791939,153.66,0.000335,31]
[359185562,1745786791984,153.66,0.000366,31]
[359185563,1745786792044,153.66,0.000366,31]
[359185564,1745786792107,153.66,0.000366,31]
[359185565,1745786792175,153.66,0.000366,31]
[359185566,1745786792232,153.66,0.000366,31]
[359185567,1745786792284,153.66,0.000397,31]
[359185568,1745786792345,153.66,0.000397,31]
[359185569,1745786792405,153.66,0.000397,31]
[359185570,1745786792468,153.66,0.000397,31]
[359185571,1745786792522,153.66,0.000397,31]
[359185572,1745786792610,153.66,0.000397,31]
[359185573,1745786792643,153.66,0.000397,31]
[359185574,1745786792708,153.66,0.000397,31]
[359185575,1745786792769,153.66,0.000397,31]
[359185576,1745786792829,153.66,0.000397,31]
[359185577,1745786792883,153.66,0.000397,31]
[359185578,1745786792968,153.66,0.000397,31]
[359185579,1745786806311,1333.0,0.00040658,120]
[359185580,1745786839193,500.0,0.00040024,30]
[359185581,1745786839516,500.0,0.00040577,30]
[359185582,1745786839830,500.0,0.00040727,30]
[359185583,1745786840187,500.0,0.00040824,30]
[359185584,1745786840535,500.0,0.00040833,30]
[359185585,1745786842231,416.0,0.00030613,30]
[359185586,1745786846215,500.0,0.00040932,30]
[359185587,1745786885385,600.0,0.00041,30]
[359185588,1745786907841,2110.0,0.00040596,30]
[359185593,1745786941023,236.576877,0.000193,2]
[359185594,1745786951431,5087.21,0.00018904,2]
[359185597,1745786983850,205.46,0.00018904,2]
[359185598,1745787022347,2379.04,0.00019057,2]
[359185599,1745787036109,-1095.44649016,0.00019398,2]
[359185600,1745787036123,-102.26486134,0.00019398,2]
[359185601,1745787036133,-250.0,0.00019411,2]
[359185602,1745787036143,-131.32610649,0.00019451,2]
[359185603,1745787036155,-55.42389351,0.00019451,2]
[359185604,1745787036165,-150.0,0.00019726,2]
[359185605,1745787036174,-150.0,0.00019727,2]
[359185606,1745787036184,-150.0,0.00019728,2]
[359185607,1745787036194,-150.0,0.00019728,2]
[359185608,1745787036204,-150.0,0.00019737,2]
[359185609,1745787036214,-150.0,0.00019742,2]
[359185610,1745787036225,-150.0,0.00019742,2]
[359185611,1745787036235,-150.0,0.00019764,2]
[359185612,1745787036246,-150.0,0.00019769,2]
[359185613,1745787036255,-150.0,0.00019786,2]
[359185614,1745787036265,-150.0,0.00019807,2]
[359185616,1745787036275,-150.0,0.00019808,2]
[359185617,1745787036284,-150.0,0.00019817,2]
[359185619,1745787036294,-150.0,0.00019827,2]
[359185621,1745787036303,-150.0,0.00019831,2]
[359185623,1745787036314,-150.0,0.00019831,2]
[359185625,1745787036323,-150.0,0.00019834,2]
[359185627,1745787036333,-150.0,0.00019838,2]
[359185629,1745787036342,-84.10110649,0.00019839,2]
[359185659,1745787037588,-65.89889351,0.00019839,2]
[359185660,1745787037598,-150.0,0.00019844,2]
[359185661,1745787037608,-150.0,0.00019852,2]
[359185662,1745787037617,-150.0,0.00019866,2]
[359185663,1745787037627,-300.0,0.00019872,2]
[359185664,1745787037636,-1200.0,0.00019872,2]
[359185665,1745787037645,-250.0,0.00019872,2]
[359185666,1745787037655,-150.0,0.00019875,2]
[359185667,1745787037664,-300.0,0.00019875,2]
[359185668,1745787037673,-150.0,0.00019877,2]
[359185669,1745787037682,-150.0,0.00019887,2]
[359185670,1745787037692,-150.0,0.0001989,2]
[359185671,1745787037701,-150.0,0.00019895,2]
[359185673,1745787037710,-150.0,0.00019896,2]
[359185675,1745787037720,-150.0,0.00019899,2]
[359185677,1745787037729,-283.24951775,0.000199,2]
[359185679,1745787037739,-150.0,0.00019901,2]
[359185681,1745787037749,-150.0,0.00019912,2]
[359185683,1745787037759,-150.0,0.00019921,2]
[359185685,1745787037769,-150.0,0.00019925,2]
[359185687,1745787037778,-150.0,0.00019927,2]
[359185689,1745787037791,-150.0,0.00019928,2]
[359185691,1745787037800,-150.0,0.00019936,2]
[359185693,1745787037809,-150.0,0.00019945,2]
[359185695,1745787037819,-150.0,0.0001996,2]
[359185697,1745787037828,-150.0,0.00019971,2]
[359185699,1745787037837,-150.0,0.00019978,2]
[359185702,1745787037846,-150.0,0.00019983,2]
[359185705,1745787037856,-500.0,0.00019985,2]
[359185708,1745787037866,-529.03267466,0.00019985,2]
[359185710,1745787037875,-3867.5778396,0.00019985,2]
[359185712,1745787037884,-5334.9981489,0.00019986,2]
[359185714,1745787037895,-321.03722009,0.00019986,2]
[359185717,1745787037911,-2061.61536495,0.00019986,2]
[359185785,1745787039559,-513.39565156,0.00019986,2]
[359185786,1745787039569,-9516.4231201,0.00019986,2]
[359185789,1745787039772,-2115.33182775,0.00019986,2]
[359185790,1745787039937,-10755.03236735,0.00019986,2]
[359186038,1745787042387,-17432.4521848,0.00019986,2]
[359186041,1745787042397,-10193.8845,0.00019986,2]
[359186043,1745787042406,-271.28660839,0.00019986,2]
[359186045,1745787042415,-15535.06901622,0.00019986,2]
[359186047,1745787042425,-150.0,0.00019987,2]
[359186049,1745787042435,-150.0,0.00019991,2]
[359186051,1745787042445,-150.0,0.00019994,2]
[359186053,1745787042454,-150.0,0.00019994,2]
[359186055,1745787042463,-500.0,0.00019994,2]
[359186057,1745787042473,-150.0,0.00019997,2]
[359186059,1745787042482,-500.0,0.00019999,2]
[359186061,1745787042492,-500.0,0.00019999,2]
[359186063,1745787042501,-500.0,0.00019999,2]
[359186065,1745787042511,-500.0,0.00019999,2]
[359186067,1745787042520,-480.0,0.00019999,2]
[359186069,1745787042530,-177.78,0.00019999,2]
[359186071,1745787042540,-214.11717605,0.00019999,2]
[359186073,1745787042557,-285.88282395,0.00019999,2]
[359186075,1745787042568,-500.0,0.00019999,2]
[359186077,1745787042577,-500.0,0.00019999,2]
[359186079,1745787042587,-500.0,0.00019999,2]
[359186081,1745787042596,-504.56,0.00019999,2]
[359186083,1745787042606,-519.98,0.00019999,2]
[359186085,1745787042615,-500.0,0.00019999,2]
[359186087,1745787042626,-480.0,0.00019999,2]
[359186089,1745787042635,-222.88,0.00019999,2]
[359186091,1745787042645,-480.0,0.00019999,2]
[359186113,1745787042836,-616.10662692,0.00019999,2]
[359186115,1745787042849,-500.0,0.00019999,2]
[359186117,1745787042859,-500.0,0.00019999,2]
[359186119,1745787042868,-480.0,0.00019999,2]
[359186122,1745787042878,-156.21,0.00019999,2]
[359186125,1745787042888,-500.0,0.00019999,2]
[359186127,1745787042897,-500.0,0.00019999,2]
[359186128,1745787042907,-247.33244548,0.00019999,2]
[359186132,1745787042919,-500.0,0.00019999,2]
[359186135,1745787042929,-562.16808376,0.00019999,2]
[359186139,1745787042939,-500.0,0.00019999,2]
[359186145,1745787042948,-500.0,0.00019999,2]
[359186148,1745787042958,-588.4,0.00019999,2]
[359186151,1745787042967,-480.0,0.00019999,2]
[359186153,1745787042976,-500.0,0.00019999,2]
[359186155,1745787042986,-594.19496841,0.00019999,2]
[359186158,1745787043001,-25.55503159,0.00019999,2]
[359186160,1745787043012,-480.0,0.00019999,2]
[359186162,1745787043021,-420.35573295,0.00019999,2]
[359186189,1745787045722,-59.64426705,0.00019999,2]
[359186190,1745787045732,-607.9,0.00019999,2]
[359186191,1745787045744,-480.0,0.00019999,2]
[359186192,1745787045754,-64.6700025,0.00019999,2]
[359186193,1745787045766,-563.5499975,0.00019999,2]
[359186194,1745787045776,-480.0,0.00019999,2]
[359186195,1745787045785,-480.0,0.00019999,2]
[359186196,1745787045795,-198.66,0.00019999,2]
[359186198,1745787045804,-500.0,0.00019999,2]
[359186199,1745787045814,-480.0,0.00019999,2]
[359186201,1745787045823,-32.1991425,0.00019999,2]
[359186203,1745787045835,-493.1008575,0.00019999,2]
[359186206,1745787045845,-480.0,0.00019999,2]
[359186207,1745787045854,-153.1,0.00019999,2]
[359186209,1745787045864,-500.0,0.00019999,2]
[359186212,1745787045873,-500.0,0.00019999,2]
[359186213,1745787045883,-480.0,0.00019999,2]
[359186215,1745787045892,-151.35,0.00019999,2]
[359186217,1745787045903,-189.39523945,0.00019999,2]
[359186219,1745787045915,-290.60476055,0.00019999,2]
[359186221,1745787045929,-111.14713945,0.00019999,2]
[359186223,1745787045941,-400.75286055,0.00019999,2]
[359186225,1745787045951,-500.0,0.00019999,2]
[359186227,1745787045962,-549.22,0.00019999,2]
[359186229,1745787045971,-500.0,0.00019999,2]
[359186230,1745787045980,-500.0,0.00019999,2]
[359186231,1745787045990,-500.0,0.00019999,2]
[359186232,1745787046000,-500.0,0.00019999,2]
[359186233,1745787046010,-614.77,0.00019999,2]
[359186234,1745787046019,-500.0,0.00019999,2]
[359186235,1745787046029,-500.0,0.00019999,2]
[359186236,1745787046038,-500.0,0.00019999,2]
[359186237,1745787046048,-500.0,0.00019999,2]
[359186239,1745787046058,-367.32826935,0.00019999,2]
[359186265,1745787065120,166.53,0.00029214,120]
[359186266,1745787075509,1964.6,0.00018899,2]
[359186267,1745787082327,350.428,0.00041055,30]
[359186268,1745787125807,1000.0,0.00041096,120]
[359186269,1745787127491,200.0,0.00041096,30]
[359186270,1745787128210,207.4,0.00041096,30]
[359186271,1745787128861,331.35647396,0.00041096,30]
[359186272,1745787138241,500.0,0.00040463,30]
[359186273,1745787138591,500.0,0.00040625,30]
[359186274,1745787138920,500.0,0.0004072,30]
[359186275,1745787144543,500.0,0.00040804,30]
[359186276,1745787170800,1000.0,0.00041096,30]
[359186277,1745787172823,1000.0,0.00041096,60]
[359186278,1745787191335,489.24292,0.00041096,120]
[359186279,1745787196016,524.127594,0.00041096,120]
[359186280,1745787198523,500.0,0.00041096,120]
[359186281,1745787204214,676.72,0.00019119,2]
[359186282,1745787223630,150.0,0.0004,30]
[359186283,1745787227161,200.0,0.00019089,2]
[359186284,1745787265826,197.52898159,0.00019332,2]
[359186285,1745787267819,1075.02,0.00017142,2]
[359186286,1745787352108,413.0,0.00041095,120]
[359186287,1745787393073,200.0,0.0004109,30]
[359186288,1745787393514,350.428,0.00041055,30]
[359186289,1745787396192,153.79,0.000335,31]
[359186290,1745787396260,153.79,0.000335,31]
[359186291,1745787396326,153.79,0.000366,31]
[359186292,1745787396373,153.79,0.000366,31]
[359186293,1745787396435,153.79,0.000366,31]
[359186294,1745787396494,153.79,0.000366,31]
[359186295,1745787396554,153.79,0.000397,31]
[359186296,1745787396610,153.79,0.000397,31]
[359186297,1745787396672,153.79,0.000397,31]
[359186298,1745787396734,153.79,0.000397,31]
[359186299,1745787401294,157.75,0.0004,30]
[359186300,1745787401721,157.75,0.0004,30]
[359186301,1745787412218,186.99,0.00032877,30]
[359186302,1745787444934,500.0,0.00040617,30]
[359186303,1745787448956,500.0,0.00040423,30]
[359186304,1745787449280,500.0,0.00040474,30]
[359186306,1745787481139,1000.0,0.00018912,2]
[359186308,1745787490182,200.0,0.0003698,60]
[359186309,1745787509748,3014.29,0.0001893,2]
[359186310,1745787554675,150.0,0.0004,120]
[359186311,1745787556897,150.0,0.00018915,7]
[359186312,1745787582250,1502.08255504,0.0004,120]
[359186313,1745787591336,1333.0,0.00040658,120]
[359186314,1745787593240,197.52898158,0.00019296,2]
[359186315,1745787604171,-200.0,0.00019381,2]
[359186316,1745787607216,-46.94945882,0.00019381,2]
[359186317,1745787647568,-152.0,0.00019381,2]
[359186318,1745787650475,-43.54,0.00019381,2]
[359186319,1745787651528,159.0,0.0003013,120]
[359186320,1745787697961,350.428,0.00041055,30]
[359186321,1745787736968,500.0,0.00018957,2]
[359186322,1745787737023,500.0,0.00040843,30]
[359186323,1745787746151,518.75043038,0.00040471,30]
[359186324,1745787793857,9134.71,0.00018895,2]
[359186325,1745787797445,233.107927,0.00041096,120]